Workbook

Sheet AVISO LEGAL
G2: Fecha de actualización: | I2: 2021-05-01
I23: www.ree.es

Sheet Potencia nacional
L1: 1
J5: Sistema
J6: Periodo
C8: =OFFSET(Potencia!C66,0,($L$1-1)*10) -> 2006 | D8: =OFFSET(Potencia!D66,0,($L$1-1)*10) -> 2007 | E8: =OFFSET(Potencia!E66,0,($L$1-1)*10) -> 2008 | F8: =OFFSET(Potencia!F66,0,($L$1-1)*10) -> 2009 | G8: =OFFSET(Potencia!G66,0,($L$1-1)*10) -> 2010 | H8: =OFFSET(Potencia!H66,0,($L$1-1)*10) -> 2011 | I8: =OFFSET(Potencia!I66,0,($L$1-1)*10) -> 2012 | J8: =OFFSET(Potencia!J66,0,($L$1-1)*10) -> 2013 | K8: =OFFSET(Potencia!K66,0,($L$1-1)*10) -> 2014 | L8: =OFFSET(Potencia!L66,0,($L$1-1)*10) -> 
B10: Hidráulica convencional y mixta | C10: =OFFSET(Potencia!C67,0,($L$1-1)*10) -> 14567.21 | D10: =OFFSET(Potencia!D67,0,($L$1-1)*10) -> 14580.21 | E10: =OFFSET(Potencia!E67,0,($L$1-1)*10) -> 14636.31 | F10: =OFFSET(Potencia!F67,0,($L$1-1)*10) -> 14636.31 | G10: =OFFSET(Potencia!G67,0,($L$1-1)*10) -> 14656.11 | H10: =OFFSET(Potencia!H67,0,($L$1-1)*10) -> 14668.01 | I10: =OFFSET(Potencia!I67,0,($L$1-1)*10) -> 14887.45 | J10: =OFFSET(Potencia!J67,0,($L$1-1)*10) -> 14890.49 | K10: =OFFSET(Potencia!K67,0,($L$1-1)*10) -> 14896.72 | L10: =OFFSET(Potencia!L67,0,($L$1-1)*10) -> 
B11: Bombeo puro | C11: =OFFSET(Potencia!C68,0,($L$1-1)*10) -> 2450.94 | D11: =OFFSET(Potencia!D68,0,($L$1-1)*10) -> 2450.94 | E11: =OFFSET(Potencia!E68,0,($L$1-1)*10) -> 2450.94 | F11: =OFFSET(Potencia!F68,0,($L$1-1)*10) -> 2450.94 | G11: =OFFSET(Potencia!G68,0,($L$1-1)*10) -> 2450.94 | H11: =OFFSET(Potencia!H68,0,($L$1-1)*10) -> 2450.94 | I11: =OFFSET(Potencia!I68,0,($L$1-1)*10) -> 2450.94 | J11: =OFFSET(Potencia!J68,0,($L$1-1)*10) -> 2450.94 | K11: =OFFSET(Potencia!K68,0,($L$1-1)*10) -> 2450.94 | L11: =OFFSET(Potencia!L68,0,($L$1-1)*10) -> 
B12: Nuclear | C12: =OFFSET(Potencia!C69,0,($L$1-1)*10) -> 7455.58 | D12: =OFFSET(Potencia!D69,0,($L$1-1)*10) -> 7455.58 | E12: =OFFSET(Potencia!E69,0,($L$1-1)*10) -> 7455.58 | F12: =OFFSET(Potencia!F69,0,($L$1-1)*10) -> 7455.58 | G12: =OFFSET(Potencia!G69,0,($L$1-1)*10) -> 7515.37 | H12: =OFFSET(Potencia!H69,0,($L$1-1)*10) -> 7572.58 | I12: =OFFSET(Potencia!I69,0,($L$1-1)*10) -> 7572.58 | J12: =OFFSET(Potencia!J69,0,($L$1-1)*10) -> 7572.58 | K12: =OFFSET(Potencia!K69,0,($L$1-1)*10) -> 7572.58 | L12: =OFFSET(Potencia!L69,0,($L$1-1)*10) -> 
B13: Carbón | C13: =OFFSET(Potencia!C70,0,($L$1-1)*10) -> 11392.7 | D13: =OFFSET(Potencia!D70,0,($L$1-1)*10) -> 11326.05 | E13: =OFFSET(Potencia!E70,0,($L$1-1)*10) -> 11324.8 | F13: =OFFSET(Potencia!F70,0,($L$1-1)*10) -> 11324.8 | G13: =OFFSET(Potencia!G70,0,($L$1-1)*10) -> 11342.35 | H13: =OFFSET(Potencia!H70,0,($L$1-1)*10) -> 11571.79 | I13: =OFFSET(Potencia!I70,0,($L$1-1)*10) -> 11063.87 | J13: =OFFSET(Potencia!J70,0,($L$1-1)*10) -> 11078.77 | K13: =OFFSET(Potencia!K70,0,($L$1-1)*10) -> 10936.42 | L13: =OFFSET(Potencia!L70,0,($L$1-1)*10) -> 
B14: Fuel + Gas | C14: =OFFSET(Potencia!C71,0,($L$1-1)*10) -> 8899.98 | D14: =OFFSET(Potencia!D71,0,($L$1-1)*10) -> 6958.81 | E14: =OFFSET(Potencia!E71,0,($L$1-1)*10) -> 6658.81 | F14: =OFFSET(Potencia!F71,0,($L$1-1)*10) -> 5368.71 | G14: =OFFSET(Potencia!G71,0,($L$1-1)*10) -> 4698.03 | H14: =OFFSET(Potencia!H71,0,($L$1-1)*10) -> 3382.55 | I14: =OFFSET(Potencia!I71,0,($L$1-1)*10) -> 3105.55 | J14: =OFFSET(Potencia!J71,0,($L$1-1)*10) -> 2995.88 | K14: =OFFSET(Potencia!K71,0,($L$1-1)*10) -> 2995.6 | L14: =OFFSET(Potencia!L71,0,($L$1-1)*10) -> 
B15: Ciclo combinado | C15: =OFFSET(Potencia!C72,0,($L$1-1)*10) -> 16358.27 | D15: =OFFSET(Potencia!D72,0,($L$1-1)*10) -> 21950.86 | E15: =OFFSET(Potencia!E72,0,($L$1-1)*10) -> 22652.77 | F15: =OFFSET(Potencia!F72,0,($L$1-1)*10) -> 24183.96 | G15: =OFFSET(Potencia!G72,0,($L$1-1)*10) -> 26572.93 | H15: =OFFSET(Potencia!H72,0,($L$1-1)*10) -> 26633.88 | I15: =OFFSET(Potencia!I72,0,($L$1-1)*10) -> 26669.86 | J15: =OFFSET(Potencia!J72,0,($L$1-1)*10) -> 26669.86 | K15: =OFFSET(Potencia!K72,0,($L$1-1)*10) -> 26669.86 | L15: =OFFSET(Potencia!L72,0,($L$1-1)*10) -> 
B16: Hidroeólica | C16: =OFFSET(Potencia!C73,0,($L$1-1)*10) -> - | D16: =OFFSET(Potencia!D73,0,($L$1-1)*10) -> - | E16: =OFFSET(Potencia!E73,0,($L$1-1)*10) -> - | F16: =OFFSET(Potencia!F73,0,($L$1-1)*10) -> - | G16: =OFFSET(Potencia!G73,0,($L$1-1)*10) -> - | H16: =OFFSET(Potencia!H73,0,($L$1-1)*10) -> - | I16: =OFFSET(Potencia!I73,0,($L$1-1)*10) -> - | J16: =OFFSET(Potencia!J73,0,($L$1-1)*10) -> - | K16: =OFFSET(Potencia!K73,0,($L$1-1)*10) -> 11.39 | L16: =OFFSET(Potencia!L73,0,($L$1-1)*10) -> 
B17: Resto hidráulica (1) | C17: =OFFSET(Potencia!C74,0,($L$1-1)*10) -> 1796.82805 | D17: =OFFSET(Potencia!D74,0,($L$1-1)*10) -> 1870.07365 | E17: =OFFSET(Potencia!E74,0,($L$1-1)*10) -> 1977.73865 | F17: =OFFSET(Potencia!F74,0,($L$1-1)*10) -> 2020.76965 | G17: =OFFSET(Potencia!G74,0,($L$1-1)*10) -> 2031.42198 | H17: =OFFSET(Potencia!H74,0,($L$1-1)*10) -> 2036.88378 | I17: =OFFSET(Potencia!I74,0,($L$1-1)*10) -> 2040.39178 | J17: =OFFSET(Potencia!J74,0,($L$1-1)*10) -> 2095.38478 | K17: =OFFSET(Potencia!K74,0,($L$1-1)*10) -> 2095.38478 | L17: =OFFSET(Potencia!L74,0,($L$1-1)*10) -> 
B18: Eólica | C18: =OFFSET(Potencia!C75,0,($L$1-1)*10) -> 11416.031 | D18: =OFFSET(Potencia!D75,0,($L$1-1)*10) -> 13664.421 | E18: =OFFSET(Potencia!E75,0,($L$1-1)*10) -> 16133.488 | F18: =OFFSET(Potencia!F75,0,($L$1-1)*10) -> 18860.703 | G18: =OFFSET(Potencia!G75,0,($L$1-1)*10) -> 19707.31475 | H18: =OFFSET(Potencia!H75,0,($L$1-1)*10) -> 21166.89875 | I18: =OFFSET(Potencia!I75,0,($L$1-1)*10) -> 22757.85335 | J18: =OFFSET(Potencia!J75,0,($L$1-1)*10) -> 23009.24035 | K18: =OFFSET(Potencia!K75,0,($L$1-1)*10) -> 23027.71085 | L18: =OFFSET(Potencia!L75,0,($L$1-1)*10) -> 
B19: Solar fotovoltaica | C19: =OFFSET(Potencia!C76,0,($L$1-1)*10) -> 125.37531 | D19: =OFFSET(Potencia!D76,0,($L$1-1)*10) -> 617.97915 | E19: =OFFSET(Potencia!E76,0,($L$1-1)*10) -> 3350.54935 | F19: =OFFSET(Potencia!F76,0,($L$1-1)*10) -> 3391.55668 | G19: =OFFSET(Potencia!G76,0,($L$1-1)*10) -> 3829.38315 | H19: =OFFSET(Potencia!H76,0,($L$1-1)*10) -> 4233.2897 | I19: =OFFSET(Potencia!I76,0,($L$1-1)*10) -> 4532.31084 | J19: =OFFSET(Potencia!J76,0,($L$1-1)*10) -> 4638.42408 | K19: =OFFSET(Potencia!K76,0,($L$1-1)*10) -> 4645.69962 | L19: =OFFSET(Potencia!L76,0,($L$1-1)*10) -> 
B20: Solar térmica | C20: =OFFSET(Potencia!C77,0,($L$1-1)*10) -> 11.02 | D20: =OFFSET(Potencia!D77,0,($L$1-1)*10) -> 11.02 | E20: =OFFSET(Potencia!E77,0,($L$1-1)*10) -> 60.92 | F20: =OFFSET(Potencia!F77,0,($L$1-1)*10) -> 232.22 | G20: =OFFSET(Potencia!G77,0,($L$1-1)*10) -> 531.92 | H20: =OFFSET(Potencia!H77,0,($L$1-1)*10) -> 998.52 | I20: =OFFSET(Potencia!I77,0,($L$1-1)*10) -> 1949.92 | J20: =OFFSET(Potencia!J77,0,($L$1-1)*10) -> 2299.4275 | K20: =OFFSET(Potencia!K77,0,($L$1-1)*10) -> 2299.4275 | L20: =OFFSET(Potencia!L77,0,($L$1-1)*10) -> 
B21: Térmica renovable/Otras renovables (2) | C21: =OFFSET(Potencia!C78,0,($L$1-1)*10) -> 592.6285 | D21: =OFFSET(Potencia!D78,0,($L$1-1)*10) -> 612.96491 | E21: =OFFSET(Potencia!E78,0,($L$1-1)*10) -> 654.06291 | F21: =OFFSET(Potencia!F78,0,($L$1-1)*10) -> 781.67291 | G21: =OFFSET(Potencia!G78,0,($L$1-1)*10) -> 820.35191 | H21: =OFFSET(Potencia!H78,0,($L$1-1)*10) -> 886.28791 | I21: =OFFSET(Potencia!I78,0,($L$1-1)*10) -> 973.93041 | J21: =OFFSET(Potencia!J78,0,($L$1-1)*10) -> 949.94041 | K21: =OFFSET(Potencia!K78,0,($L$1-1)*10) -> 987.46341 | L21: =OFFSET(Potencia!L78,0,($L$1-1)*10) -> 
B22: Térmica no renovable/Cogeneración y resto/Cogeneración (3) | C22: =OFFSET(Potencia!C79,0,($L$1-1)*10) -> 6442.0827 | D22: =OFFSET(Potencia!D79,0,($L$1-1)*10) -> 6557.5921 | E22: =OFFSET(Potencia!E79,0,($L$1-1)*10) -> 6810.2631 | F22: =OFFSET(Potencia!F79,0,($L$1-1)*10) -> 7043.96 | G22: =OFFSET(Potencia!G79,0,($L$1-1)*10) -> 7214.6912 | H22: =OFFSET(Potencia!H79,0,($L$1-1)*10) -> 7296.6787 | I22: =OFFSET(Potencia!I79,0,($L$1-1)*10) -> 7238.2112 | J22: =OFFSET(Potencia!J79,0,($L$1-1)*10) -> 7178.9417 | K22: =OFFSET(Potencia!K79,0,($L$1-1)*10) -> 7168.8632 | L22: =OFFSET(Potencia!L79,0,($L$1-1)*10) -> 
B23: Residuos no renovables(4) | C23: =OFFSET(Potencia!C80,0,($L$1-1)*10) -> - | D23: =OFFSET(Potencia!D80,0,($L$1-1)*10) -> - | E23: =OFFSET(Potencia!E80,0,($L$1-1)*10) -> - | F23: =OFFSET(Potencia!F80,0,($L$1-1)*10) -> - | G23: =OFFSET(Potencia!G80,0,($L$1-1)*10) -> - | H23: =OFFSET(Potencia!H80,0,($L$1-1)*10) -> - | I23: =OFFSET(Potencia!I80,0,($L$1-1)*10) -> - | J23: =OFFSET(Potencia!J80,0,($L$1-1)*10) -> - | K23: =OFFSET(Potencia!K80,0,($L$1-1)*10) -> - | L23: =OFFSET(Potencia!L80,0,($L$1-1)*10) -> 
B24: Residuos renovables(4) | C24: =OFFSET(Potencia!C81,0,($L$1-1)*10) -> - | D24: =OFFSET(Potencia!D81,0,($L$1-1)*10) -> - | E24: =OFFSET(Potencia!E81,0,($L$1-1)*10) -> - | F24: =OFFSET(Potencia!F81,0,($L$1-1)*10) -> - | G24: =OFFSET(Potencia!G81,0,($L$1-1)*10) -> - | H24: =OFFSET(Potencia!H81,0,($L$1-1)*10) -> - | I24: =OFFSET(Potencia!I81,0,($L$1-1)*10) -> - | J24: =OFFSET(Potencia!J81,0,($L$1-1)*10) -> - | K24: =OFFSET(Potencia!K81,0,($L$1-1)*10) -> - | L24: =OFFSET(Potencia!L81,0,($L$1-1)*10) -> 
B25: Total | C25: =OFFSET(Potencia!C82,0,($L$1-1)*10) -> 81508.64556 | D25: =OFFSET(Potencia!D82,0,($L$1-1)*10) -> 88056.50081 | E25: =OFFSET(Potencia!E82,0,($L$1-1)*10) -> 94166.23201 | F25: =OFFSET(Potencia!F82,0,($L$1-1)*10) -> 97751.18224 | G25: =OFFSET(Potencia!G82,0,($L$1-1)*10) -> 101370.813 | H25: =OFFSET(Potencia!H82,0,($L$1-1)*10) -> 102898.3088 | I25: =OFFSET(Potencia!I82,0,($L$1-1)*10) -> 105242.8676 | J25: =OFFSET(Potencia!J82,0,($L$1-1)*10) -> 105829.8788 | K25: =OFFSET(Potencia!K82,0,($L$1-1)*10) -> 105758.0594 | L25: =OFFSET(Potencia!L82,0,($L$1-1)*10) -> 
B26: (1) Incluye todas aquellas unidades menores de 50 MW que no pertenecen a ninguna unidad de gestión hidráulica (UGH). A partir de 2015 están incluidas en hidráulica convencional y mixta.
B27: (2) Otras renovables incluyen biogás, biomasa, hidráulica marina y geotérmica. Los valores de potencia incluyen residuos hasta el 31/12/2014.
B28: (3) Los valores de potencia incluyen residuos hasta el 31/12/2014.
B29: (4) Potencia incluída en térmica renovable y térmica no renovable/cogeneración y resto/cogeneración hasta el 31/12/2014.
B30: Fuente: Comisión Nacional de los Mercados y la Competencia (CNMC) hasta 2014 en: resto hidráulica, eólica, solar fotovoltaica, solar térmica, térmica renovable/otras renovables, térmica no renovable/cogeneración y resto/cogeneración y residuos.
B31: Datos a 31 de diciembre.
B32: =IF(L1=2,IF(MONTH(FACT)=1,"",(CONCATENATE("(*) Para el año ",YEAR(FACT), " datos a ",TEXT(FACT-30,"mmmm")," de ",YEAR(FACT),"."))),"") -> 

Sheet Potencia peninsular
L1: 3
J5: Sistema
J6: Periodo
C8: =OFFSET(Potencia!C2,0,($L$1-1)*10) -> 2010 | D8: =OFFSET(Potencia!D2,0,($L$1-1)*10) -> 2011 | E8: =OFFSET(Potencia!E2,0,($L$1-1)*10) -> 2012 | F8: =OFFSET(Potencia!F2,0,($L$1-1)*10) -> 2013 | G8: =OFFSET(Potencia!G2,0,($L$1-1)*10) -> 2014 | H8: =OFFSET(Potencia!H2,0,($L$1-1)*10) ->  | I8: =OFFSET(Potencia!I2,0,($L$1-1)*10) ->  | J8: =OFFSET(Potencia!J2,0,($L$1-1)*10) ->  | K8: =OFFSET(Potencia!K2,0,($L$1-1)*10) ->  | L8: =OFFSET(Potencia!L2,0,($L$1-1)*10) -> 
B10: Hidráulica convencional y mixta | C10: =OFFSET(Potencia!C3,0,($L$1-1)*10) -> 14655.31 | D10: =OFFSET(Potencia!D3,0,($L$1-1)*10) -> 14667.21 | E10: =OFFSET(Potencia!E3,0,($L$1-1)*10) -> 14886.65 | F10: =OFFSET(Potencia!F3,0,($L$1-1)*10) -> 14889.69 | G10: =OFFSET(Potencia!G3,0,($L$1-1)*10) -> 14895.92 | H10: =OFFSET(Potencia!H3,0,($L$1-1)*10) ->  | I10: =OFFSET(Potencia!I3,0,($L$1-1)*10) ->  | J10: =OFFSET(Potencia!J3,0,($L$1-1)*10) ->  | K10: =OFFSET(Potencia!K3,0,($L$1-1)*10) ->  | L10: =OFFSET(Potencia!L3,0,($L$1-1)*10) -> 
B11: Bombeo puro | C11: =OFFSET(Potencia!C4,0,($L$1-1)*10) -> 2450.94 | D11: =OFFSET(Potencia!D4,0,($L$1-1)*10) -> 2450.94 | E11: =OFFSET(Potencia!E4,0,($L$1-1)*10) -> 2450.94 | F11: =OFFSET(Potencia!F4,0,($L$1-1)*10) -> 2450.94 | G11: =OFFSET(Potencia!G4,0,($L$1-1)*10) -> 2450.94 | H11: =OFFSET(Potencia!H4,0,($L$1-1)*10) ->  | I11: =OFFSET(Potencia!I4,0,($L$1-1)*10) ->  | J11: =OFFSET(Potencia!J4,0,($L$1-1)*10) ->  | K11: =OFFSET(Potencia!K4,0,($L$1-1)*10) ->  | L11: =OFFSET(Potencia!L4,0,($L$1-1)*10) -> 
B12: Nuclear | C12: =OFFSET(Potencia!C5,0,($L$1-1)*10) -> 7515.37 | D12: =OFFSET(Potencia!D5,0,($L$1-1)*10) -> 7572.58 | E12: =OFFSET(Potencia!E5,0,($L$1-1)*10) -> 7572.58 | F12: =OFFSET(Potencia!F5,0,($L$1-1)*10) -> 7572.58 | G12: =OFFSET(Potencia!G5,0,($L$1-1)*10) -> 7572.58 | H12: =OFFSET(Potencia!H5,0,($L$1-1)*10) ->  | I12: =OFFSET(Potencia!I5,0,($L$1-1)*10) ->  | J12: =OFFSET(Potencia!J5,0,($L$1-1)*10) ->  | K12: =OFFSET(Potencia!K5,0,($L$1-1)*10) ->  | L12: =OFFSET(Potencia!L5,0,($L$1-1)*10) -> 
B13: Carbón | C13: =OFFSET(Potencia!C6,0,($L$1-1)*10) -> 10873.95 | D13: =OFFSET(Potencia!D6,0,($L$1-1)*10) -> 11103.39 | E13: =OFFSET(Potencia!E6,0,($L$1-1)*10) -> 10595.47 | F13: =OFFSET(Potencia!F6,0,($L$1-1)*10) -> 10610.37 | G13: =OFFSET(Potencia!G6,0,($L$1-1)*10) -> 10468.02 | H13: =OFFSET(Potencia!H6,0,($L$1-1)*10) ->  | I13: =OFFSET(Potencia!I6,0,($L$1-1)*10) ->  | J13: =OFFSET(Potencia!J6,0,($L$1-1)*10) ->  | K13: =OFFSET(Potencia!K6,0,($L$1-1)*10) ->  | L13: =OFFSET(Potencia!L6,0,($L$1-1)*10) -> 
B14: Fuel + Gas | C14: =OFFSET(Potencia!C7,0,($L$1-1)*10) -> 2144.79 | D14: =OFFSET(Potencia!D7,0,($L$1-1)*10) -> 806.52 | E14: =OFFSET(Potencia!E7,0,($L$1-1)*10) -> 505.52 | F14: =OFFSET(Potencia!F7,0,($L$1-1)*10) -> 505.52 | G14: =OFFSET(Potencia!G7,0,($L$1-1)*10) -> 505.52 | H14: =OFFSET(Potencia!H7,0,($L$1-1)*10) ->  | I14: =OFFSET(Potencia!I7,0,($L$1-1)*10) ->  | J14: =OFFSET(Potencia!J7,0,($L$1-1)*10) ->  | K14: =OFFSET(Potencia!K7,0,($L$1-1)*10) ->  | L14: =OFFSET(Potencia!L7,0,($L$1-1)*10) -> 
B15: Ciclo combinado | C15: =OFFSET(Potencia!C8,0,($L$1-1)*10) -> 24844.38 | D15: =OFFSET(Potencia!D8,0,($L$1-1)*10) -> 24911.73 | E15: =OFFSET(Potencia!E8,0,($L$1-1)*10) -> 24947.71 | F15: =OFFSET(Potencia!F8,0,($L$1-1)*10) -> 24947.71 | G15: =OFFSET(Potencia!G8,0,($L$1-1)*10) -> 24947.71 | H15: =OFFSET(Potencia!H8,0,($L$1-1)*10) ->  | I15: =OFFSET(Potencia!I8,0,($L$1-1)*10) ->  | J15: =OFFSET(Potencia!J8,0,($L$1-1)*10) ->  | K15: =OFFSET(Potencia!K8,0,($L$1-1)*10) ->  | L15: =OFFSET(Potencia!L8,0,($L$1-1)*10) -> 
B16: Resto hidráulica (1) | C16: =OFFSET(Potencia!C9,0,($L$1-1)*10) -> 2030.95898 | D16: =OFFSET(Potencia!D9,0,($L$1-1)*10) -> 2036.42078 | E16: =OFFSET(Potencia!E9,0,($L$1-1)*10) -> 2039.92878 | F16: =OFFSET(Potencia!F9,0,($L$1-1)*10) -> 2094.92178 | G16: =OFFSET(Potencia!G9,0,($L$1-1)*10) -> 2094.92178 | H16: =OFFSET(Potencia!H9,0,($L$1-1)*10) ->  | I16: =OFFSET(Potencia!I9,0,($L$1-1)*10) ->  | J16: =OFFSET(Potencia!J9,0,($L$1-1)*10) ->  | K16: =OFFSET(Potencia!K9,0,($L$1-1)*10) ->  | L16: =OFFSET(Potencia!L9,0,($L$1-1)*10) -> 
B17: Eólica | C17: =OFFSET(Potencia!C10,0,($L$1-1)*10) -> 19561.05345 | D17: =OFFSET(Potencia!D10,0,($L$1-1)*10) -> 21018.08745 | E17: =OFFSET(Potencia!E10,0,($L$1-1)*10) -> 22608.70205 | F17: =OFFSET(Potencia!F10,0,($L$1-1)*10) -> 22852.97405 | G17: =OFFSET(Potencia!G10,0,($L$1-1)*10) -> 22871.44455 | H17: =OFFSET(Potencia!H10,0,($L$1-1)*10) ->  | I17: =OFFSET(Potencia!I10,0,($L$1-1)*10) ->  | J17: =OFFSET(Potencia!J10,0,($L$1-1)*10) ->  | K17: =OFFSET(Potencia!K10,0,($L$1-1)*10) ->  | L17: =OFFSET(Potencia!L10,0,($L$1-1)*10) -> 
B18: Solar fotovoltaica | C18: =OFFSET(Potencia!C11,0,($L$1-1)*10) -> 3645.21391 | D18: =OFFSET(Potencia!D11,0,($L$1-1)*10) -> 4032.05946 | E18: =OFFSET(Potencia!E11,0,($L$1-1)*10) -> 4293.59123 | F18: =OFFSET(Potencia!F11,0,($L$1-1)*10) -> 4396.50017 | G18: =OFFSET(Potencia!G11,0,($L$1-1)*10) -> 4402.66461 | H18: =OFFSET(Potencia!H11,0,($L$1-1)*10) ->  | I18: =OFFSET(Potencia!I11,0,($L$1-1)*10) ->  | J18: =OFFSET(Potencia!J11,0,($L$1-1)*10) ->  | K18: =OFFSET(Potencia!K11,0,($L$1-1)*10) ->  | L18: =OFFSET(Potencia!L11,0,($L$1-1)*10) -> 
B19: Solar térmica | C19: =OFFSET(Potencia!C12,0,($L$1-1)*10) -> 531.92 | D19: =OFFSET(Potencia!D12,0,($L$1-1)*10) -> 998.52 | E19: =OFFSET(Potencia!E12,0,($L$1-1)*10) -> 1949.92 | F19: =OFFSET(Potencia!F12,0,($L$1-1)*10) -> 2299.4275 | G19: =OFFSET(Potencia!G12,0,($L$1-1)*10) -> 2299.4275 | H19: =OFFSET(Potencia!H12,0,($L$1-1)*10) ->  | I19: =OFFSET(Potencia!I12,0,($L$1-1)*10) ->  | J19: =OFFSET(Potencia!J12,0,($L$1-1)*10) ->  | K19: =OFFSET(Potencia!K12,0,($L$1-1)*10) ->  | L19: =OFFSET(Potencia!L12,0,($L$1-1)*10) -> 
B20: Térmica renovable/Otras renovables (2) | C20: =OFFSET(Potencia!C13,0,($L$1-1)*10) -> 778.78391 | D20: =OFFSET(Potencia!D13,0,($L$1-1)*10) -> 882.91991 | E20: =OFFSET(Potencia!E13,0,($L$1-1)*10) -> 968.43241 | F20: =OFFSET(Potencia!F13,0,($L$1-1)*10) -> 944.44241 | G20: =OFFSET(Potencia!G13,0,($L$1-1)*10) -> 981.96541 | H20: =OFFSET(Potencia!H13,0,($L$1-1)*10) ->  | I20: =OFFSET(Potencia!I13,0,($L$1-1)*10) ->  | J20: =OFFSET(Potencia!J13,0,($L$1-1)*10) ->  | K20: =OFFSET(Potencia!K13,0,($L$1-1)*10) ->  | L20: =OFFSET(Potencia!L13,0,($L$1-1)*10) -> 
B21: Térmica no renovable/Cogeneración y resto/Cogeneración (3) | C21: =OFFSET(Potencia!C14,0,($L$1-1)*10) -> 7098.0842 | D21: =OFFSET(Potencia!D14,0,($L$1-1)*10) -> 7179.0717 | E21: =OFFSET(Potencia!E14,0,($L$1-1)*10) -> 7117.1502 | F21: =OFFSET(Potencia!F14,0,($L$1-1)*10) -> 7057.8807 | G21: =OFFSET(Potencia!G14,0,($L$1-1)*10) -> 7047.8022 | H21: =OFFSET(Potencia!H14,0,($L$1-1)*10) ->  | I21: =OFFSET(Potencia!I14,0,($L$1-1)*10) ->  | J21: =OFFSET(Potencia!J14,0,($L$1-1)*10) ->  | K21: =OFFSET(Potencia!K14,0,($L$1-1)*10) ->  | L21: =OFFSET(Potencia!L14,0,($L$1-1)*10) -> 
B22: Residuos no renovables(4) | C22: =OFFSET(Potencia!C15,0,($L$1-1)*10) -> - | D22: =OFFSET(Potencia!D15,0,($L$1-1)*10) -> - | E22: =OFFSET(Potencia!E15,0,($L$1-1)*10) -> - | F22: =OFFSET(Potencia!F15,0,($L$1-1)*10) -> - | G22: =OFFSET(Potencia!G15,0,($L$1-1)*10) -> - | H22: =OFFSET(Potencia!H15,0,($L$1-1)*10) ->  | I22: =OFFSET(Potencia!I15,0,($L$1-1)*10) ->  | J22: =OFFSET(Potencia!J15,0,($L$1-1)*10) ->  | K22: =OFFSET(Potencia!K15,0,($L$1-1)*10) ->  | L22: =OFFSET(Potencia!L15,0,($L$1-1)*10) -> 
B23: Residuos renovables(4) | C23: =OFFSET(Potencia!C16,0,($L$1-1)*10) -> - | D23: =OFFSET(Potencia!D16,0,($L$1-1)*10) -> - | E23: =OFFSET(Potencia!E16,0,($L$1-1)*10) -> - | F23: =OFFSET(Potencia!F16,0,($L$1-1)*10) -> - | G23: =OFFSET(Potencia!G16,0,($L$1-1)*10) -> - | H23: =OFFSET(Potencia!H16,0,($L$1-1)*10) ->  | I23: =OFFSET(Potencia!I16,0,($L$1-1)*10) ->  | J23: =OFFSET(Potencia!J16,0,($L$1-1)*10) ->  | K23: =OFFSET(Potencia!K16,0,($L$1-1)*10) ->  | L23: =OFFSET(Potencia!L16,0,($L$1-1)*10) -> 
B24: Total | C24: =OFFSET(Potencia!C17,0,($L$1-1)*10) -> 96130.75445 | D24: =OFFSET(Potencia!D17,0,($L$1-1)*10) -> 97659.4493 | E24: =OFFSET(Potencia!E17,0,($L$1-1)*10) -> 99936.59467 | F24: =OFFSET(Potencia!F17,0,($L$1-1)*10) -> 100622.9566 | G24: =OFFSET(Potencia!G17,0,($L$1-1)*10) -> 100538.9161 | H24: =OFFSET(Potencia!H17,0,($L$1-1)*10) ->  | I24: =OFFSET(Potencia!I17,0,($L$1-1)*10) ->  | J24: =OFFSET(Potencia!J17,0,($L$1-1)*10) ->  | K24: =OFFSET(Potencia!K17,0,($L$1-1)*10) ->  | L24: =OFFSET(Potencia!L17,0,($L$1-1)*10) -> 
B25: (1) Incluye todas aquellas unidades menores de 50 MW que no pertenecen a ninguna unidad de gestión hidráulica (UGH). A partir de 2015 están incluidas en hidráulica convencional y mixta.
B26: (2) Otras renovables incluyen biogás, biomasa, hidráulica marina y geotérmica. Los valores de potencia incluyen residuos hasta el 31/12/2014.
B27: (3) Los valores de potencia incluyen residuos hasta el 31/12/2014.
B28: (4) Potencia incluída en térmica renovable y térmica no renovable/cogeneración y resto/cogeneración hasta el 31/12/2014.
B29: Fuente: Comisión Nacional de los Mercados y la Competencia (CNMC) hasta 2014 en: resto hidráulica, eólica, solar fotovoltaica, solar térmica, térmica renovable/otras renovables, térmica no renovable/cogeneración y resto/cogeneración y residuos.
B30: Datos a 31 de diciembre.
B31: =IF(L1=4,IF(MONTH(FACT)=1,"",(CONCATENATE("(*) Para el año ",YEAR(FACT), " datos a ",TEXT(FACT-30,"mmmm")," de ",YEAR(FACT),"."))),"") -> 
B32: A partir del 1/1/2011 se incluye GICC (Elcogás) en carbón, anteriormente en fuel/gas. Según el R.D. 134/2010 esta central está obligada a participar, como unidad vendedora que utiliza carbón autóctono como combustible, en el proceso de resolucion de restricciones por garantía de suministro.

Sheet Potencia Baleares
L1: 1
J5: Sistema
J6: Periodo
C8: =OFFSET(Potencia!C19,0,($L$1-1)*10) -> 2006 | D8: =OFFSET(Potencia!D19,0,($L$1-1)*10) -> 2007 | E8: =OFFSET(Potencia!E19,0,($L$1-1)*10) -> 2008 | F8: =OFFSET(Potencia!F19,0,($L$1-1)*10) -> 2009 | G8: =OFFSET(Potencia!G19,0,($L$1-1)*10) -> 2010 | H8: =OFFSET(Potencia!H19,0,($L$1-1)*10) -> 2011 | I8: =OFFSET(Potencia!I19,0,($L$1-1)*10) -> 2012 | J8: =OFFSET(Potencia!J19,0,($L$1-1)*10) -> 2013 | K8: =OFFSET(Potencia!K19,0,($L$1-1)*10) -> 2014 | L8: =OFFSET(Potencia!L19,0,($L$1-1)*10) -> 
B10: Carbón | C10: =OFFSET(Potencia!C20,0,($L$1-1)*10) -> 468.4 | D10: =OFFSET(Potencia!D20,0,($L$1-1)*10) -> 468.4 | E10: =OFFSET(Potencia!E20,0,($L$1-1)*10) -> 468.4 | F10: =OFFSET(Potencia!F20,0,($L$1-1)*10) -> 468.4 | G10: =OFFSET(Potencia!G20,0,($L$1-1)*10) -> 468.4 | H10: =OFFSET(Potencia!H20,0,($L$1-1)*10) -> 468.4 | I10: =OFFSET(Potencia!I20,0,($L$1-1)*10) -> 468.4 | J10: =OFFSET(Potencia!J20,0,($L$1-1)*10) -> 468.4 | K10: =OFFSET(Potencia!K20,0,($L$1-1)*10) -> 468.4 | L10: =OFFSET(Potencia!L20,0,($L$1-1)*10) -> 
B11: Motores diesel | C11: =OFFSET(Potencia!C21,0,($L$1-1)*10) -> 175.6 | D11: =OFFSET(Potencia!D21,0,($L$1-1)*10) -> 210.4 | E11: =OFFSET(Potencia!E21,0,($L$1-1)*10) -> 203.3 | F11: =OFFSET(Potencia!F21,0,($L$1-1)*10) -> 196.2 | G11: =OFFSET(Potencia!G21,0,($L$1-1)*10) -> 196.2 | H11: =OFFSET(Potencia!H21,0,($L$1-1)*10) -> 182 | I11: =OFFSET(Potencia!I21,0,($L$1-1)*10) -> 182 | J11: =OFFSET(Potencia!J21,0,($L$1-1)*10) -> 182 | K11: =OFFSET(Potencia!K21,0,($L$1-1)*10) -> 182 | L11: =OFFSET(Potencia!L21,0,($L$1-1)*10) -> 
B12: Turbina de gas | C12: =OFFSET(Potencia!C22,0,($L$1-1)*10) -> 541.9 | D12: =OFFSET(Potencia!D22,0,($L$1-1)*10) -> 387.9 | E12: =OFFSET(Potencia!E22,0,($L$1-1)*10) -> 460.8 | F12: =OFFSET(Potencia!F22,0,($L$1-1)*10) -> 531.8 | G12: =OFFSET(Potencia!G22,0,($L$1-1)*10) -> 533.4 | H12: =OFFSET(Potencia!H22,0,($L$1-1)*10) -> 533.4 | I12: =OFFSET(Potencia!I22,0,($L$1-1)*10) -> 557.4 | J12: =OFFSET(Potencia!J22,0,($L$1-1)*10) -> 605.4 | K12: =OFFSET(Potencia!K22,0,($L$1-1)*10) -> 605.4 | L12: =OFFSET(Potencia!L22,0,($L$1-1)*10) -> 
B13: Fuel + Gas | C13: =OFFSET(Potencia!C23,0,($L$1-1)*10) -> 717.5 | D13: =OFFSET(Potencia!D23,0,($L$1-1)*10) -> 598.3 | E13: =OFFSET(Potencia!E23,0,($L$1-1)*10) -> 664.1 | F13: =OFFSET(Potencia!F23,0,($L$1-1)*10) -> 728 | G13: =OFFSET(Potencia!G23,0,($L$1-1)*10) -> 729.6 | H13: =OFFSET(Potencia!H23,0,($L$1-1)*10) -> 715.4 | I13: =OFFSET(Potencia!I23,0,($L$1-1)*10) -> 739.4 | J13: =OFFSET(Potencia!J23,0,($L$1-1)*10) -> 787.4 | K13: =OFFSET(Potencia!K23,0,($L$1-1)*10) -> 787.4 | L13: =OFFSET(Potencia!L23,0,($L$1-1)*10) -> 
B14: Ciclo combinado | C14: =OFFSET(Potencia!C24,0,($L$1-1)*10) -> 418.15 | D14: =OFFSET(Potencia!D24,0,($L$1-1)*10) -> 643.45 | E14: =OFFSET(Potencia!E24,0,($L$1-1)*10) -> 643.45 | F14: =OFFSET(Potencia!F24,0,($L$1-1)*10) -> 793.65 | G14: =OFFSET(Potencia!G24,0,($L$1-1)*10) -> 857.95 | H14: =OFFSET(Potencia!H24,0,($L$1-1)*10) -> 857.95 | I14: =OFFSET(Potencia!I24,0,($L$1-1)*10) -> 857.95 | J14: =OFFSET(Potencia!J24,0,($L$1-1)*10) -> 857.95 | K14: =OFFSET(Potencia!K24,0,($L$1-1)*10) -> 857.95 | L14: =OFFSET(Potencia!L24,0,($L$1-1)*10) -> 
B15: Generación auxiliar (1) | C15: =OFFSET(Potencia!C25,0,($L$1-1)*10) -> - | D15: =OFFSET(Potencia!D25,0,($L$1-1)*10) -> - | E15: =OFFSET(Potencia!E25,0,($L$1-1)*10) -> - | F15: =OFFSET(Potencia!F25,0,($L$1-1)*10) -> - | G15: =OFFSET(Potencia!G25,0,($L$1-1)*10) -> - | H15: =OFFSET(Potencia!H25,0,($L$1-1)*10) -> - | I15: =OFFSET(Potencia!I25,0,($L$1-1)*10) -> - | J15: =OFFSET(Potencia!J25,0,($L$1-1)*10) -> - | K15: =OFFSET(Potencia!K25,0,($L$1-1)*10) -> - | L15: =OFFSET(Potencia!L25,0,($L$1-1)*10) -> 
B16: Eólica | C16: =OFFSET(Potencia!C26,0,($L$1-1)*10) -> 3.6763 | D16: =OFFSET(Potencia!D26,0,($L$1-1)*10) -> 3.6763 | E16: =OFFSET(Potencia!E26,0,($L$1-1)*10) -> 3.6763 | F16: =OFFSET(Potencia!F26,0,($L$1-1)*10) -> 3.6763 | G16: =OFFSET(Potencia!G26,0,($L$1-1)*10) -> 3.6763 | H16: =OFFSET(Potencia!H26,0,($L$1-1)*10) -> 3.6763 | I16: =OFFSET(Potencia!I26,0,($L$1-1)*10) -> 3.6763 | J16: =OFFSET(Potencia!J26,0,($L$1-1)*10) -> 3.6763 | K16: =OFFSET(Potencia!K26,0,($L$1-1)*10) -> 3.6763 | L16: =OFFSET(Potencia!L26,0,($L$1-1)*10) -> 
B17: Solar fotovoltaica | C17: =OFFSET(Potencia!C27,0,($L$1-1)*10) -> 1.11289 | D17: =OFFSET(Potencia!D27,0,($L$1-1)*10) -> 1.47669 | E17: =OFFSET(Potencia!E27,0,($L$1-1)*10) -> 51.53754 | F17: =OFFSET(Potencia!F27,0,($L$1-1)*10) -> 52.58454 | G17: =OFFSET(Potencia!G27,0,($L$1-1)*10) -> 59.01353 | H17: =OFFSET(Potencia!H27,0,($L$1-1)*10) -> 63.13208 | I17: =OFFSET(Potencia!I27,0,($L$1-1)*10) -> 77.50613 | J17: =OFFSET(Potencia!J27,0,($L$1-1)*10) -> 77.67493 | K17: =OFFSET(Potencia!K27,0,($L$1-1)*10) -> 77.73383 | L17: =OFFSET(Potencia!L27,0,($L$1-1)*10) -> 
B18: Térmica renovable/Otras renovables (2) | C18: =OFFSET(Potencia!C28,0,($L$1-1)*10) -> - | D18: =OFFSET(Potencia!D28,0,($L$1-1)*10) -> - | E18: =OFFSET(Potencia!E28,0,($L$1-1)*10) -> - | F18: =OFFSET(Potencia!F28,0,($L$1-1)*10) -> - | G18: =OFFSET(Potencia!G28,0,($L$1-1)*10) -> - | H18: =OFFSET(Potencia!H28,0,($L$1-1)*10) -> - | I18: =OFFSET(Potencia!I28,0,($L$1-1)*10) -> 2.13 | J18: =OFFSET(Potencia!J28,0,($L$1-1)*10) -> 2.13 | K18: =OFFSET(Potencia!K28,0,($L$1-1)*10) -> 2.13 | L18: =OFFSET(Potencia!L28,0,($L$1-1)*10) -> 
B19: Térmica no renovable/Cogeneración y resto/Cogeneración (3) | C19: =OFFSET(Potencia!C29,0,($L$1-1)*10) -> 38.31 | D19: =OFFSET(Potencia!D29,0,($L$1-1)*10) -> 39.168 | E19: =OFFSET(Potencia!E29,0,($L$1-1)*10) -> 38.188 | F19: =OFFSET(Potencia!F29,0,($L$1-1)*10) -> 40.402 | G19: =OFFSET(Potencia!G29,0,($L$1-1)*10) -> 81.171 | H19: =OFFSET(Potencia!H29,0,($L$1-1)*10) -> 82.171 | I19: =OFFSET(Potencia!I29,0,($L$1-1)*10) -> 85.625 | J19: =OFFSET(Potencia!J29,0,($L$1-1)*10) -> 85.625 | K19: =OFFSET(Potencia!K29,0,($L$1-1)*10) -> 85.625 | L19: =OFFSET(Potencia!L29,0,($L$1-1)*10) -> 
B20: Residuos no renovables(4) | C20: =OFFSET(Potencia!C30,0,($L$1-1)*10) -> - | D20: =OFFSET(Potencia!D30,0,($L$1-1)*10) -> - | E20: =OFFSET(Potencia!E30,0,($L$1-1)*10) -> - | F20: =OFFSET(Potencia!F30,0,($L$1-1)*10) -> - | G20: =OFFSET(Potencia!G30,0,($L$1-1)*10) -> - | H20: =OFFSET(Potencia!H30,0,($L$1-1)*10) -> - | I20: =OFFSET(Potencia!I30,0,($L$1-1)*10) -> - | J20: =OFFSET(Potencia!J30,0,($L$1-1)*10) -> - | K20: =OFFSET(Potencia!K30,0,($L$1-1)*10) -> - | L20: =OFFSET(Potencia!L30,0,($L$1-1)*10) -> 
B21: Residuos renovables(4) | C21: =OFFSET(Potencia!C31,0,($L$1-1)*10) -> - | D21: =OFFSET(Potencia!D31,0,($L$1-1)*10) -> - | E21: =OFFSET(Potencia!E31,0,($L$1-1)*10) -> - | F21: =OFFSET(Potencia!F31,0,($L$1-1)*10) -> - | G21: =OFFSET(Potencia!G31,0,($L$1-1)*10) -> - | H21: =OFFSET(Potencia!H31,0,($L$1-1)*10) -> - | I21: =OFFSET(Potencia!I31,0,($L$1-1)*10) -> - | J21: =OFFSET(Potencia!J31,0,($L$1-1)*10) -> - | K21: =OFFSET(Potencia!K31,0,($L$1-1)*10) -> - | L21: =OFFSET(Potencia!L31,0,($L$1-1)*10) -> 
B22: Total | C22: =OFFSET(Potencia!C32,0,($L$1-1)*10) -> 1647.14919 | D22: =OFFSET(Potencia!D32,0,($L$1-1)*10) -> 1754.47099 | E22: =OFFSET(Potencia!E32,0,($L$1-1)*10) -> 1869.35184 | F22: =OFFSET(Potencia!F32,0,($L$1-1)*10) -> 2086.71284 | G22: =OFFSET(Potencia!G32,0,($L$1-1)*10) -> 2199.81083 | H22: =OFFSET(Potencia!H32,0,($L$1-1)*10) -> 2190.72938 | I22: =OFFSET(Potencia!I32,0,($L$1-1)*10) -> 2234.68743 | J22: =OFFSET(Potencia!J32,0,($L$1-1)*10) -> 2282.85623 | K22: =OFFSET(Potencia!K32,0,($L$1-1)*10) -> 2282.91513 | L22: =OFFSET(Potencia!L32,0,($L$1-1)*10) -> 
B23: (1) Grupos de emergencia que se instalan de forma transitoria en determinadas zonas para cubrir un déficit de generación.
B24: (2) Otras renovables incluyen biogás y biomasa. Los valores de potencia incluyen residuos hasta el 31/12/2014.
B25: (3) Los valores de potencia incluyen residuos hasta el 31/12/2014.
B26: (4) Potencia incluída en térmica renovable y térmica no renovable/cogeneración y resto/cogeneración hasta el 31/12/2014.
B27: Fuente: Comisión Nacional de los Mercados y la Competencia (CNMC) hasta 2014 en: eólica, solar fotovoltaica, térmica renovable/otras renovables, térmica no renovable/cogeneración y resto/cogeneración y residuos.
B28: Datos a 31 de diciembre.
B29: =IF(L1=2,IF(MONTH(FACT)=1,"",(CONCATENATE("(*) Para el año ",YEAR(FACT), " datos a ",TEXT(FACT-30,"mmmm")," de ",YEAR(FACT),"."))),"") -> 

Sheet Potencia Canarias
L1: 1
J5: Sistema
J6: Periodo
C8: =OFFSET(Potencia!C34,0,($L$1-1)*10) -> 2006 | D8: =OFFSET(Potencia!D34,0,($L$1-1)*10) -> 2007 | E8: =OFFSET(Potencia!E34,0,($L$1-1)*10) -> 2008 | F8: =OFFSET(Potencia!F34,0,($L$1-1)*10) -> 2009 | G8: =OFFSET(Potencia!G34,0,($L$1-1)*10) -> 2010 | H8: =OFFSET(Potencia!H34,0,($L$1-1)*10) -> 2011 | I8: =OFFSET(Potencia!I34,0,($L$1-1)*10) -> 2012 | J8: =OFFSET(Potencia!J34,0,($L$1-1)*10) -> 2013 | K8: =OFFSET(Potencia!K34,0,($L$1-1)*10) -> 2014 | L8: =OFFSET(Potencia!L34,0,($L$1-1)*10) -> 
B10: Hidráulica | C10: =OFFSET(Potencia!C35,0,($L$1-1)*10) -> 0.8 | D10: =OFFSET(Potencia!D35,0,($L$1-1)*10) -> 0.8 | E10: =OFFSET(Potencia!E35,0,($L$1-1)*10) -> 0.8 | F10: =OFFSET(Potencia!F35,0,($L$1-1)*10) -> 0.8 | G10: =OFFSET(Potencia!G35,0,($L$1-1)*10) -> 0.8 | H10: =OFFSET(Potencia!H35,0,($L$1-1)*10) -> 0.8 | I10: =OFFSET(Potencia!I35,0,($L$1-1)*10) -> 0.8 | J10: =OFFSET(Potencia!J35,0,($L$1-1)*10) -> 0.8 | K10: =OFFSET(Potencia!K35,0,($L$1-1)*10) -> 0.8 | L10: =OFFSET(Potencia!L35,0,($L$1-1)*10) -> 
B11: Motores diesel | C11: =OFFSET(Potencia!C36,0,($L$1-1)*10) -> 476.73 | D11: =OFFSET(Potencia!D36,0,($L$1-1)*10) -> 476.73 | E11: =OFFSET(Potencia!E36,0,($L$1-1)*10) -> 476.73 | F11: =OFFSET(Potencia!F36,0,($L$1-1)*10) -> 476.73 | G11: =OFFSET(Potencia!G36,0,($L$1-1)*10) -> 476.73 | H11: =OFFSET(Potencia!H36,0,($L$1-1)*10) -> 476.73 | I11: =OFFSET(Potencia!I36,0,($L$1-1)*10) -> 476.73 | J11: =OFFSET(Potencia!J36,0,($L$1-1)*10) -> 496.2 | K11: =OFFSET(Potencia!K36,0,($L$1-1)*10) -> 495.92 | L11: =OFFSET(Potencia!L36,0,($L$1-1)*10) -> 
B12: Turbina de gas | C12: =OFFSET(Potencia!C37,0,($L$1-1)*10) -> 520.17 | D12: =OFFSET(Potencia!D37,0,($L$1-1)*10) -> 520.17 | E12: =OFFSET(Potencia!E37,0,($L$1-1)*10) -> 520.17 | F12: =OFFSET(Potencia!F37,0,($L$1-1)*10) -> 520.17 | G12: =OFFSET(Potencia!G37,0,($L$1-1)*10) -> 520.17 | H12: =OFFSET(Potencia!H37,0,($L$1-1)*10) -> 557.16 | I12: =OFFSET(Potencia!I37,0,($L$1-1)*10) -> 557.16 | J12: =OFFSET(Potencia!J37,0,($L$1-1)*10) -> 557.16 | K12: =OFFSET(Potencia!K37,0,($L$1-1)*10) -> 557.16 | L12: =OFFSET(Potencia!L37,0,($L$1-1)*10) -> 
B13: Turbina de vapor | C13: =OFFSET(Potencia!C38,0,($L$1-1)*10) -> 659.78 | D13: =OFFSET(Potencia!D38,0,($L$1-1)*10) -> 659.78 | E13: =OFFSET(Potencia!E38,0,($L$1-1)*10) -> 659.78 | F13: =OFFSET(Potencia!F38,0,($L$1-1)*10) -> 659.78 | G13: =OFFSET(Potencia!G38,0,($L$1-1)*10) -> 659.78 | H13: =OFFSET(Potencia!H38,0,($L$1-1)*10) -> 659.78 | I13: =OFFSET(Potencia!I38,0,($L$1-1)*10) -> 659.78 | J13: =OFFSET(Potencia!J38,0,($L$1-1)*10) -> 482.64 | K13: =OFFSET(Potencia!K38,0,($L$1-1)*10) -> 482.64 | L13: =OFFSET(Potencia!L38,0,($L$1-1)*10) -> 
B14: Fuel + Gas | C14: =OFFSET(Potencia!C39,0,($L$1-1)*10) -> 1656.68 | D14: =OFFSET(Potencia!D39,0,($L$1-1)*10) -> 1656.68 | E14: =OFFSET(Potencia!E39,0,($L$1-1)*10) -> 1656.68 | F14: =OFFSET(Potencia!F39,0,($L$1-1)*10) -> 1656.68 | G14: =OFFSET(Potencia!G39,0,($L$1-1)*10) -> 1656.68 | H14: =OFFSET(Potencia!H39,0,($L$1-1)*10) -> 1693.67 | I14: =OFFSET(Potencia!I39,0,($L$1-1)*10) -> 1693.67 | J14: =OFFSET(Potencia!J39,0,($L$1-1)*10) -> 1536 | K14: =OFFSET(Potencia!K39,0,($L$1-1)*10) -> 1535.72 | L14: =OFFSET(Potencia!L39,0,($L$1-1)*10) -> 
B15: Ciclo combinado (1) | C15: =OFFSET(Potencia!C40,0,($L$1-1)*10) -> 635.2 | D15: =OFFSET(Potencia!D40,0,($L$1-1)*10) -> 635.2 | E15: =OFFSET(Potencia!E40,0,($L$1-1)*10) -> 635.2 | F15: =OFFSET(Potencia!F40,0,($L$1-1)*10) -> 640.2 | G15: =OFFSET(Potencia!G40,0,($L$1-1)*10) -> 870.6 | H15: =OFFSET(Potencia!H40,0,($L$1-1)*10) -> 864.2 | I15: =OFFSET(Potencia!I40,0,($L$1-1)*10) -> 864.2 | J15: =OFFSET(Potencia!J40,0,($L$1-1)*10) -> 864.2 | K15: =OFFSET(Potencia!K40,0,($L$1-1)*10) -> 864.2 | L15: =OFFSET(Potencia!L40,0,($L$1-1)*10) -> 
B16: Generación auxiliar (2) | C16: =OFFSET(Potencia!C41,0,($L$1-1)*10) -> 41.27 | D16: =OFFSET(Potencia!D41,0,($L$1-1)*10) -> 41.35 | E16: =OFFSET(Potencia!E41,0,($L$1-1)*10) -> 16.18 | F16: =OFFSET(Potencia!F41,0,($L$1-1)*10) -> 16.1 | G16: =OFFSET(Potencia!G41,0,($L$1-1)*10) -> - | H16: =OFFSET(Potencia!H41,0,($L$1-1)*10) -> - | I16: =OFFSET(Potencia!I41,0,($L$1-1)*10) -> - | J16: =OFFSET(Potencia!J41,0,($L$1-1)*10) -> - | K16: =OFFSET(Potencia!K41,0,($L$1-1)*10) -> - | L16: =OFFSET(Potencia!L41,0,($L$1-1)*10) -> 
B17: Hidroeólica | C17: =OFFSET(Potencia!C42,0,($L$1-1)*10) -> - | D17: =OFFSET(Potencia!D42,0,($L$1-1)*10) -> - | E17: =OFFSET(Potencia!E42,0,($L$1-1)*10) -> - | F17: =OFFSET(Potencia!F42,0,($L$1-1)*10) -> - | G17: =OFFSET(Potencia!G42,0,($L$1-1)*10) -> - | H17: =OFFSET(Potencia!H42,0,($L$1-1)*10) -> - | I17: =OFFSET(Potencia!I42,0,($L$1-1)*10) -> - | J17: =OFFSET(Potencia!J42,0,($L$1-1)*10) -> - | K17: =OFFSET(Potencia!K42,0,($L$1-1)*10) -> 11.39 | L17: =OFFSET(Potencia!L42,0,($L$1-1)*10) -> 
B18: Resto hidráulica | C18: =OFFSET(Potencia!C43,0,($L$1-1)*10) -> 0.463 | D18: =OFFSET(Potencia!D43,0,($L$1-1)*10) -> 0.463 | E18: =OFFSET(Potencia!E43,0,($L$1-1)*10) -> 0.463 | F18: =OFFSET(Potencia!F43,0,($L$1-1)*10) -> 0.463 | G18: =OFFSET(Potencia!G43,0,($L$1-1)*10) -> 0.463 | H18: =OFFSET(Potencia!H43,0,($L$1-1)*10) -> 0.463 | I18: =OFFSET(Potencia!I43,0,($L$1-1)*10) -> 0.463 | J18: =OFFSET(Potencia!J43,0,($L$1-1)*10) -> 0.463 | K18: =OFFSET(Potencia!K43,0,($L$1-1)*10) -> 0.463 | L18: =OFFSET(Potencia!L43,0,($L$1-1)*10) -> 
B19: Eólica | C19: =OFFSET(Potencia!C44,0,($L$1-1)*10) -> 126.645 | D19: =OFFSET(Potencia!D44,0,($L$1-1)*10) -> 134.955 | E19: =OFFSET(Potencia!E44,0,($L$1-1)*10) -> 136.985 | F19: =OFFSET(Potencia!F44,0,($L$1-1)*10) -> 142.585 | G19: =OFFSET(Potencia!G44,0,($L$1-1)*10) -> 142.585 | H19: =OFFSET(Potencia!H44,0,($L$1-1)*10) -> 145.135 | I19: =OFFSET(Potencia!I44,0,($L$1-1)*10) -> 145.475 | J19: =OFFSET(Potencia!J44,0,($L$1-1)*10) -> 152.59 | K19: =OFFSET(Potencia!K44,0,($L$1-1)*10) -> 152.59 | L19: =OFFSET(Potencia!L44,0,($L$1-1)*10) -> 
B20: Solar fotovoltaica | C20: =OFFSET(Potencia!C45,0,($L$1-1)*10) -> 5.40378 | D20: =OFFSET(Potencia!D45,0,($L$1-1)*10) -> 22.22271 | E20: =OFFSET(Potencia!E45,0,($L$1-1)*10) -> 93.75416 | F20: =OFFSET(Potencia!F45,0,($L$1-1)*10) -> 95.70661 | G20: =OFFSET(Potencia!G45,0,($L$1-1)*10) -> 125.09781 | H20: =OFFSET(Potencia!H45,0,($L$1-1)*10) -> 138.04026 | I20: =OFFSET(Potencia!I45,0,($L$1-1)*10) -> 161.15558 | J20: =OFFSET(Potencia!J45,0,($L$1-1)*10) -> 164.19108 | K20: =OFFSET(Potencia!K45,0,($L$1-1)*10) -> 165.24328 | L20: =OFFSET(Potencia!L45,0,($L$1-1)*10) -> 
B21: Térmica renovable/Otras renovables (3) | C21: =OFFSET(Potencia!C46,0,($L$1-1)*10) -> 38.2 | D21: =OFFSET(Potencia!D46,0,($L$1-1)*10) -> 40.296 | E21: =OFFSET(Potencia!E46,0,($L$1-1)*10) -> 41.568 | F21: =OFFSET(Potencia!F46,0,($L$1-1)*10) -> 41.568 | G21: =OFFSET(Potencia!G46,0,($L$1-1)*10) -> 41.568 | H21: =OFFSET(Potencia!H46,0,($L$1-1)*10) -> 3.368 | I21: =OFFSET(Potencia!I46,0,($L$1-1)*10) -> 3.368 | J21: =OFFSET(Potencia!J46,0,($L$1-1)*10) -> 3.368 | K21: =OFFSET(Potencia!K46,0,($L$1-1)*10) -> 3.368 | L21: =OFFSET(Potencia!L46,0,($L$1-1)*10) -> 
B22: Térmica no renovable/Cogeneración y resto/Cogeneración | C22: =OFFSET(Potencia!C47,0,($L$1-1)*10) -> 33.268 | D22: =OFFSET(Potencia!D47,0,($L$1-1)*10) -> 33.268 | E22: =OFFSET(Potencia!E47,0,($L$1-1)*10) -> 33.268 | F22: =OFFSET(Potencia!F47,0,($L$1-1)*10) -> 33.268 | G22: =OFFSET(Potencia!G47,0,($L$1-1)*10) -> 33.268 | H22: =OFFSET(Potencia!H47,0,($L$1-1)*10) -> 33.268 | I22: =OFFSET(Potencia!I47,0,($L$1-1)*10) -> 33.268 | J22: =OFFSET(Potencia!J47,0,($L$1-1)*10) -> 33.268 | K22: =OFFSET(Potencia!K47,0,($L$1-1)*10) -> 33.268 | L22: =OFFSET(Potencia!L47,0,($L$1-1)*10) -> 
B23: Total | C23: =OFFSET(Potencia!C48,0,($L$1-1)*10) -> 2537.92978 | D23: =OFFSET(Potencia!D48,0,($L$1-1)*10) -> 2565.23471 | E23: =OFFSET(Potencia!E48,0,($L$1-1)*10) -> 2614.89816 | F23: =OFFSET(Potencia!F48,0,($L$1-1)*10) -> 2627.37061 | G23: =OFFSET(Potencia!G48,0,($L$1-1)*10) -> 2871.06181 | H23: =OFFSET(Potencia!H48,0,($L$1-1)*10) -> 2878.94426 | I23: =OFFSET(Potencia!I48,0,($L$1-1)*10) -> 2902.39958 | J23: =OFFSET(Potencia!J48,0,($L$1-1)*10) -> 2754.88008 | K23: =OFFSET(Potencia!K48,0,($L$1-1)*10) -> 2767.04228 | L23: =OFFSET(Potencia!L48,0,($L$1-1)*10) -> 
B24: (1) Utiliza gasoil como combustible principal.
B25: (2) Grupos de emergencia que se instalan de forma transitoria en determinadas zonas para cubrir un déficit de generación.
B26: (3) Otras renovables incluyen biogás y biomasa.
B27: Fuente: Comisión Nacional de los Mercados y la Competencia (CNMC) hasta 2014 en: resto hidráulica, eólica, solar fotovoltaica, térmica renovable/otras renovables y térmica no renovable/cogeneración y resto/cogeneración.
B28: Datos a 31 de diciembre.
B29: =IF(L1=2,IF(MONTH(FACT)=1,"",(CONCATENATE("(*) Para el año ",YEAR(FACT), " datos a ",TEXT(FACT-30,"mmmm")," de ",YEAR(FACT),"."))),"") -> 

Sheet Potencia Ceuta
L1: 1
J5: Sistema
J6: Periodo
C8: =OFFSET(Potencia!C50,0,($L$1-1)*10) -> 2006 | D8: =OFFSET(Potencia!D50,0,($L$1-1)*10) -> 2007 | E8: =OFFSET(Potencia!E50,0,($L$1-1)*10) -> 2008 | F8: =OFFSET(Potencia!F50,0,($L$1-1)*10) -> 2009 | G8: =OFFSET(Potencia!G50,0,($L$1-1)*10) -> 2010 | H8: =OFFSET(Potencia!H50,0,($L$1-1)*10) -> 2011 | I8: =OFFSET(Potencia!I50,0,($L$1-1)*10) -> 2012 | J8: =OFFSET(Potencia!J50,0,($L$1-1)*10) -> 2013 | K8: =OFFSET(Potencia!K50,0,($L$1-1)*10) -> 2014 | L8: =OFFSET(Potencia!L50,0,($L$1-1)*10) -> 
B10: Motores diesel | C10: =OFFSET(Potencia!C51,0,($L$1-1)*10) -> 53.3 | D10: =OFFSET(Potencia!D51,0,($L$1-1)*10) -> 64.48 | E10: =OFFSET(Potencia!E51,0,($L$1-1)*10) -> 65.72 | F10: =OFFSET(Potencia!F51,0,($L$1-1)*10) -> 65.72 | G10: =OFFSET(Potencia!G51,0,($L$1-1)*10) -> 77.52 | H10: =OFFSET(Potencia!H51,0,($L$1-1)*10) -> 77.52 | I10: =OFFSET(Potencia!I51,0,($L$1-1)*10) -> 77.52 | J10: =OFFSET(Potencia!J51,0,($L$1-1)*10) -> 77.52 | K10: =OFFSET(Potencia!K51,0,($L$1-1)*10) -> 77.52 | L10: =OFFSET(Potencia!L51,0,($L$1-1)*10) -> 
B11: Turbina de gas | C11: =OFFSET(Potencia!C52,0,($L$1-1)*10) -> - | D11: =OFFSET(Potencia!D52,0,($L$1-1)*10) -> - | E11: =OFFSET(Potencia!E52,0,($L$1-1)*10) -> - | F11: =OFFSET(Potencia!F52,0,($L$1-1)*10) -> - | G11: =OFFSET(Potencia!G52,0,($L$1-1)*10) -> 13.3 | H11: =OFFSET(Potencia!H52,0,($L$1-1)*10) -> 13.3 | I11: =OFFSET(Potencia!I52,0,($L$1-1)*10) -> 13.3 | J11: =OFFSET(Potencia!J52,0,($L$1-1)*10) -> 13.3 | K11: =OFFSET(Potencia!K52,0,($L$1-1)*10) -> 13.3 | L11: =OFFSET(Potencia!L52,0,($L$1-1)*10) -> 
B12: Fuel + Gas | C12: =OFFSET(Potencia!C53,0,($L$1-1)*10) -> 53.3 | D12: =OFFSET(Potencia!D53,0,($L$1-1)*10) -> 64.48 | E12: =OFFSET(Potencia!E53,0,($L$1-1)*10) -> 65.72 | F12: =OFFSET(Potencia!F53,0,($L$1-1)*10) -> 65.72 | G12: =OFFSET(Potencia!G53,0,($L$1-1)*10) -> 90.82 | H12: =OFFSET(Potencia!H53,0,($L$1-1)*10) -> 90.82 | I12: =OFFSET(Potencia!I53,0,($L$1-1)*10) -> 90.82 | J12: =OFFSET(Potencia!J53,0,($L$1-1)*10) -> 90.82 | K12: =OFFSET(Potencia!K53,0,($L$1-1)*10) -> 90.82 | L12: =OFFSET(Potencia!L53,0,($L$1-1)*10) -> 
B13: Total | C13: =OFFSET(Potencia!C54,0,($L$1-1)*10) -> 53.3 | D13: =OFFSET(Potencia!D54,0,($L$1-1)*10) -> 64.48 | E13: =OFFSET(Potencia!E54,0,($L$1-1)*10) -> 65.72 | F13: =OFFSET(Potencia!F54,0,($L$1-1)*10) -> 65.72 | G13: =OFFSET(Potencia!G54,0,($L$1-1)*10) -> 90.82 | H13: =OFFSET(Potencia!H54,0,($L$1-1)*10) -> 90.82 | I13: =OFFSET(Potencia!I54,0,($L$1-1)*10) -> 90.82 | J13: =OFFSET(Potencia!J54,0,($L$1-1)*10) -> 90.82 | K13: =OFFSET(Potencia!K54,0,($L$1-1)*10) -> 90.82 | L13: =OFFSET(Potencia!L54,0,($L$1-1)*10) -> 
B14: Datos a 31 de diciembre.
B15: =IF(L1=2,IF(MONTH(FACT)=1,"",(CONCATENATE("(*) Para el año ",YEAR(FACT), " datos a ",TEXT(FACT-30,"mmmm")," de ",YEAR(FACT),"."))),"") -> 

Sheet Potencia Melilla
L1: 1
J5: Sistema
J6: Periodo
C8: =OFFSET(Potencia!C56,0,($L$1-1)*10) -> 2006 | D8: =OFFSET(Potencia!D56,0,($L$1-1)*10) -> 2007 | E8: =OFFSET(Potencia!E56,0,($L$1-1)*10) -> 2008 | F8: =OFFSET(Potencia!F56,0,($L$1-1)*10) -> 2009 | G8: =OFFSET(Potencia!G56,0,($L$1-1)*10) -> 2010 | H8: =OFFSET(Potencia!H56,0,($L$1-1)*10) -> 2011 | I8: =OFFSET(Potencia!I56,0,($L$1-1)*10) -> 2012 | J8: =OFFSET(Potencia!J56,0,($L$1-1)*10) -> 2013 | K8: =OFFSET(Potencia!K56,0,($L$1-1)*10) -> 2014 | L8: =OFFSET(Potencia!L56,0,($L$1-1)*10) -> 
B10: Motores diesel | C10: =OFFSET(Potencia!C57,0,($L$1-1)*10) -> 49.81 | D10: =OFFSET(Potencia!D57,0,($L$1-1)*10) -> 64.51 | E10: =OFFSET(Potencia!E57,0,($L$1-1)*10) -> 64.64 | F10: =OFFSET(Potencia!F57,0,($L$1-1)*10) -> 64.64 | G10: =OFFSET(Potencia!G57,0,($L$1-1)*10) -> 64.64 | H10: =OFFSET(Potencia!H57,0,($L$1-1)*10) -> 64.64 | I10: =OFFSET(Potencia!I57,0,($L$1-1)*10) -> 64.64 | J10: =OFFSET(Potencia!J57,0,($L$1-1)*10) -> 64.64 | K10: =OFFSET(Potencia!K57,0,($L$1-1)*10) -> 64.64 | L10: =OFFSET(Potencia!L57,0,($L$1-1)*10) -> 
B11: Turbina de gas | C11: =OFFSET(Potencia!C58,0,($L$1-1)*10) -> 11.5 | D11: =OFFSET(Potencia!D58,0,($L$1-1)*10) -> 11.5 | E11: =OFFSET(Potencia!E58,0,($L$1-1)*10) -> 11.5 | F11: =OFFSET(Potencia!F58,0,($L$1-1)*10) -> 11.5 | G11: =OFFSET(Potencia!G58,0,($L$1-1)*10) -> 11.5 | H11: =OFFSET(Potencia!H58,0,($L$1-1)*10) -> 11.5 | I11: =OFFSET(Potencia!I58,0,($L$1-1)*10) -> 11.5 | J11: =OFFSET(Potencia!J58,0,($L$1-1)*10) -> 11.5 | K11: =OFFSET(Potencia!K58,0,($L$1-1)*10) -> 11.5 | L11: =OFFSET(Potencia!L58,0,($L$1-1)*10) -> 
B12: Fuel + Gas | C12: =OFFSET(Potencia!C59,0,($L$1-1)*10) -> 61.31 | D12: =OFFSET(Potencia!D59,0,($L$1-1)*10) -> 76.01 | E12: =OFFSET(Potencia!E59,0,($L$1-1)*10) -> 76.14 | F12: =OFFSET(Potencia!F59,0,($L$1-1)*10) -> 76.14 | G12: =OFFSET(Potencia!G59,0,($L$1-1)*10) -> 76.14 | H12: =OFFSET(Potencia!H59,0,($L$1-1)*10) -> 76.14 | I12: =OFFSET(Potencia!I59,0,($L$1-1)*10) -> 76.14 | J12: =OFFSET(Potencia!J59,0,($L$1-1)*10) -> 76.14 | K12: =OFFSET(Potencia!K59,0,($L$1-1)*10) -> 76.14 | L12: =OFFSET(Potencia!L59,0,($L$1-1)*10) -> 
B13: Solar fotovoltaica | C13: =OFFSET(Potencia!C60,0,($L$1-1)*10) -> 0.0075 | D13: =OFFSET(Potencia!D60,0,($L$1-1)*10) -> 0.0084 | E13: =OFFSET(Potencia!E60,0,($L$1-1)*10) -> 0.0579 | F13: =OFFSET(Potencia!F60,0,($L$1-1)*10) -> 0.0579 | G13: =OFFSET(Potencia!G60,0,($L$1-1)*10) -> 0.0579 | H13: =OFFSET(Potencia!H60,0,($L$1-1)*10) -> 0.0579 | I13: =OFFSET(Potencia!I60,0,($L$1-1)*10) -> 0.0579 | J13: =OFFSET(Potencia!J60,0,($L$1-1)*10) -> 0.0579 | K13: =OFFSET(Potencia!K60,0,($L$1-1)*10) -> 0.0579 | L13: =OFFSET(Potencia!L60,0,($L$1-1)*10) -> 
B14: Térmica no renovable/Cogeneración y resto/Cogeneración | C14: =OFFSET(Potencia!C61,0,($L$1-1)*10) -> 0 | D14: =OFFSET(Potencia!D61,0,($L$1-1)*10) -> 2.168 | E14: =OFFSET(Potencia!E61,0,($L$1-1)*10) -> 2.168 | F14: =OFFSET(Potencia!F61,0,($L$1-1)*10) -> 2.168 | G14: =OFFSET(Potencia!G61,0,($L$1-1)*10) -> 2.168 | H14: =OFFSET(Potencia!H61,0,($L$1-1)*10) -> 2.168 | I14: =OFFSET(Potencia!I61,0,($L$1-1)*10) -> 2.168 | J14: =OFFSET(Potencia!J61,0,($L$1-1)*10) -> 2.168 | K14: =OFFSET(Potencia!K61,0,($L$1-1)*10) -> 2.168 | L14: =OFFSET(Potencia!L61,0,($L$1-1)*10) -> 
B15: Residuos no renovables(1) | C15: =OFFSET(Potencia!C62,0,($L$1-1)*10) -> - | D15: =OFFSET(Potencia!D62,0,($L$1-1)*10) -> - | E15: =OFFSET(Potencia!E62,0,($L$1-1)*10) -> - | F15: =OFFSET(Potencia!F62,0,($L$1-1)*10) -> - | G15: =OFFSET(Potencia!G62,0,($L$1-1)*10) -> - | H15: =OFFSET(Potencia!H62,0,($L$1-1)*10) -> - | I15: =OFFSET(Potencia!I62,0,($L$1-1)*10) -> - | J15: =OFFSET(Potencia!J62,0,($L$1-1)*10) -> - | K15: =OFFSET(Potencia!K62,0,($L$1-1)*10) -> - | L15: =OFFSET(Potencia!L62,0,($L$1-1)*10) -> 
B16: Residuos renovables(1) | C16: =OFFSET(Potencia!C63,0,($L$1-1)*10) -> - | D16: =OFFSET(Potencia!D63,0,($L$1-1)*10) -> - | E16: =OFFSET(Potencia!E63,0,($L$1-1)*10) -> - | F16: =OFFSET(Potencia!F63,0,($L$1-1)*10) -> - | G16: =OFFSET(Potencia!G63,0,($L$1-1)*10) -> - | H16: =OFFSET(Potencia!H63,0,($L$1-1)*10) -> - | I16: =OFFSET(Potencia!I63,0,($L$1-1)*10) -> - | J16: =OFFSET(Potencia!J63,0,($L$1-1)*10) -> - | K16: =OFFSET(Potencia!K63,0,($L$1-1)*10) -> - | L16: =OFFSET(Potencia!L63,0,($L$1-1)*10) -> 
B17: Total | C17: =OFFSET(Potencia!C64,0,($L$1-1)*10) -> 61.3175 | D17: =OFFSET(Potencia!D64,0,($L$1-1)*10) -> 78.1864 | E17: =OFFSET(Potencia!E64,0,($L$1-1)*10) -> 78.3659 | F17: =OFFSET(Potencia!F64,0,($L$1-1)*10) -> 78.3659 | G17: =OFFSET(Potencia!G64,0,($L$1-1)*10) -> 78.3659 | H17: =OFFSET(Potencia!H64,0,($L$1-1)*10) -> 78.3659 | I17: =OFFSET(Potencia!I64,0,($L$1-1)*10) -> 78.3659 | J17: =OFFSET(Potencia!J64,0,($L$1-1)*10) -> 78.3659 | K17: =OFFSET(Potencia!K64,0,($L$1-1)*10) -> 78.3659 | L17: =OFFSET(Potencia!L64,0,($L$1-1)*10) -> 
B18: (1) Potencia incluída en térmica no renovable/cogeneración y resto/cogeneración hasta el 31/12/2014.
B19: Fuente: Comisión Nacional de los Mercados y la Competencia (CNMC) hasta 2014 en: solar fotovoltaica, térmica no renovable/cogeneración y resto/cogeneración y residuos.
B20: Datos a 31 de diciembre.
B21: =IF(L1=2,IF(MONTH(FACT)=1,"",(CONCATENATE("(*) Para el año ",YEAR(FACT), " datos a ",TEXT(FACT-30,"mmmm")," de ",YEAR(FACT),"."))),"") -> 

Sheet Potencia (hidden)
B2: Potencia instalada peninsular (MW) | C2: 1990 | D2: 1991 | E2: 1992 | F2: 1993 | G2: 1994 | H2: 1995 | I2: 1996 | J2: 1997 | K2: 1998 | L2: 1999 | M2: 2000 | N2: 2001 | O2: 2002 | P2: 2003 | Q2: 2004 | R2: 2005 | S2: 2006 | T2: 2007 | U2: 2008 | V2: 2009 | W2: 2010 | X2: 2011 | Y2: 2012 | Z2: 2013 | AA2: 2014
B3: Hidráulica convencional y mixta | C3: 13792.61 | D3: 13795.26 | E3: 13848.85 | F3: 13848.85 | G3: 14063.97 | H3: 14088.07 | I3: 14143.08 | J3: 14143.08 | K3: 14143.08 | L3: 14299.34 | M3: 14299.34 | N3: 14301.27 | O3: 14304.68 | P3: 14462.1 | Q3: 14492.17 | R3: 14534.06 | S3: 14566.41 | T3: 14579.41 | U3: 14635.51 | V3: 14635.51 | W3: 14655.31 | X3: 14667.21 | Y3: 14886.65 | Z3: 14889.69 | AA3: 14895.92
B4: Bombeo puro | C4: 2428.44 | D4: 2428.44 | E4: 2428.44 | F4: 2428.44 | G4: 2428.44 | H4: 2428.44 | I4: 2428.44 | J4: 2428.44 | K4: 2428.44 | L4: 2428.44 | M4: 2428.44 | N4: 2428.44 | O4: 2428.44 | P4: 2428.44 | Q4: 2428.44 | R4: 2428.44 | S4: 2450.94 | T4: 2450.94 | U4: 2450.94 | V4: 2450.94 | W4: 2450.94 | X4: 2450.94 | Y4: 2450.94 | Z4: 2450.94 | AA4: 2450.94
B5: Nuclear | C5: 7329.28 | D5: 7343.28 | E5: 7391 | F5: 7391 | G5: 7391 | H5: 7391 | I5: 7391 | J5: 7559.1 | K5: 7606.09 | L5: 7650.09 | M5: 7677.39 | N5: 7694.1 | O5: 7694.1 | P5: 7614.31 | Q5: 7590.15 | R5: 7597.28 | S5: 7455.58 | T5: 7455.58 | U5: 7455.58 | V5: 7455.58 | W5: 7515.37 | X5: 7572.58 | Y5: 7572.58 | Z5: 7572.58 | AA5: 7572.58
B6: Carbón | C6: 10243 | D6: 10310 | E6: 10310 | F6: 10310 | G6: 10310 | H6: 10310 | I6: 10310 | J6: 10859.9 | K6: 10859.9 | L6: 10859.9 | M6: 11048.67 | N6: 11058.88 | O6: 11051.18 | P6: 11053.22 | Q6: 11036.69 | R6: 10909.96 | S6: 10924.3 | T6: 10857.65 | U6: 10856.4 | V6: 10856.4 | W6: 10873.95 | X6: 11103.39 | Y6: 10595.47 | Z6: 10610.37 | AA6: 10468.02
B7: Fuel + Gas | C7: 7259.35 | D7: 7247.22 | E7: 7247.22 | F7: 7247.22 | G7: 7247.22 | H7: 7247.22 | I7: 7521.22 | J7: 7521.22 | K7: 7521.22 | L7: 7521.22 | M7: 7521.22 | N7: 7521.22 | O7: 7220.05 | P7: 6655.28 | Q7: 6663.92 | R7: 6369.92 | S7: 6369.92 | T7: 4521.99 | U7: 4179.99 | V7: 2826.07 | W7: 2144.79 | X7: 806.52 | Y7: 505.52 | Z7: 505.52 | AA7: 505.52
B8: Ciclo combinado | C8: - | D8: - | E8: - | F8: - | G8: - | H8: - | I8: - | J8: - | K8: - | L8: - | M8: - | N8: - | O8: 2619.47 | P8: 4123.13 | Q8: 8062.08 | R8: 11992.37 | S8: 15304.92 | T8: 20672.21 | U8: 21374.12 | V8: 22750.11 | W8: 24844.38 | X8: 24911.73 | Y8: 24947.71 | Z8: 24947.71 | AA8: 24947.71
B9: Resto hidráulica | C9: 594.219 | D9: 644.233 | E9: 727.772 | F9: 793.655 | G9: 897.169 | H9: 1123.8878 | I9: 1186.0118 | J9: 1233.37395 | K9: 1279.30795 | L9: 1331.88595 | M9: 1390.68045 | N9: 1473.16295 | O9: 1512.33135 | P9: 1567.29655 | Q9: 1629.90555 | R9: 1694.91855 | S9: 1796.36505 | T9: 1869.61065 | U9: 1977.27565 | V9: 2020.30665 | W9: 2030.95898 | X9: 2036.42078 | Y9: 2039.92878 | Z9: 2094.92178 | AA9: 2094.92178
B10: Eólica | C10: 0.54 | D10: 0.54 | E10: 30.44 | F10: 33.63 | G10: 38.91 | H10: 96.56 | I10: 146.36 | J10: 375.445 | K10: 633.775 | L10: 1021.942 | M10: 1828.922 | N10: 2816.932 | O10: 4390.9845 | P10: 5816.0565 | Q10: 7777.1265 | R10: 9654.0225 | S10: 11285.7097 | T10: 13525.7897 | U10: 15992.8267 | V10: 18714.4417 | W10: 19561.05345 | X10: 21018.08745 | Y10: 22608.70205 | Z10: 22852.97405 | AA10: 22871.44455
B11: Solar fotovoltaica | C11: 0.1 | D11: 0.1 | E11: 0.1 | F11: 0.1 | G11: 1.1 | H11: 1.1 | I11: 1.1 | J11: 1.137 | K11: 1.159 | L11: 1.22016 | M11: 1.71574 | N11: 2.17681 | O11: 4.8429 | P11: 11.37563 | Q11: 20.92546 | R11: 42.9462 | S11: 118.85114 | T11: 594.27135 | U11: 3205.19975 | V11: 3243.20763 | W11: 3645.21391 | X11: 4032.05946 | Y11: 4293.59123 | Z11: 4396.50017 | AA11: 4402.66461
B12: Solar térmica | C12: - | D12: - | E12: - | F12: - | G12: - | H12: - | I12: - | J12: - | K12: - | L12: - | M12: - | N12: - | O12: - | P12: - | Q12: - | R12: - | S12: 11.02 | T12: 11.02 | U12: 60.92 | V12: 232.22 | W12: 531.92 | X12: 998.52 | Y12: 1949.92 | Z12: 2299.4275 | AA12: 2299.4275
B13: Térmica renovable/Otras renovables | C13: - | D13: - | E13: 15.46 | F13: 20.96 | G13: 20.96 | H13: 62.135 | I13: 80.031 | J13: 101.988 | K13: 114.73 | L13: 128.546 | M13: 181.302 | N13: 229.338 | O13: 341.2925 | P13: 433.4435 | Q13: 451.0785 | R13: 478.6745 | S13: 554.4285 | T13: 572.66891 | U13: 612.49491 | V13: 740.10491 | W13: 778.78391 | X13: 882.91991 | Y13: 968.43241 | Z13: 944.44241 | AA13: 981.96541
B14: Térmica no renovable/Cogeneración y resto/Cogeneración | C14: 159.155 | D14: 225.507 | E14: 334.254 | F14: 534.612 | G14: 682.436 | H14: 1162.9033 | I14: 1834.3803 | J14: 2336.5797 | K14: 2956.4977 | L14: 3610.6447 | M14: 4216.4217 | N14: 4969.2517 | O14: 5377.3337 | P14: 5731.7867 | Q14: 5987.4317 | R14: 6162.5017 | S14: 6370.5047 | T14: 6482.9881 | U14: 6736.6391 | V14: 6968.122 | W14: 7098.0842 | X14: 7179.0717 | Y14: 7117.1502 | Z14: 7057.8807 | AA14: 7047.8022
B15: Residuos no renovables | C15: - | D15: - | E15: - | F15: - | G15: - | H15: - | I15: - | J15: - | K15: - | L15: - | M15: - | N15: - | O15: - | P15: - | Q15: - | R15: - | S15: - | T15: - | U15: - | V15: - | W15: - | X15: - | Y15: - | Z15: - | AA15: -
B16: Residuos renovables | C16: - | D16: - | E16: - | F16: - | G16: - | H16: - | I16: - | J16: - | K16: - | L16: - | M16: - | N16: - | O16: - | P16: - | Q16: - | R16: - | S16: - | T16: - | U16: - | V16: - | W16: - | X16: - | Y16: - | Z16: - | AA16: -
B17: Total | C17: 41806.694 | D17: 41994.58 | E17: 42333.536 | F17: 42608.467 | G17: 43081.205 | H17: 43911.3161 | I17: 45041.6231 | J17: 46560.26365 | K17: 47544.19965 | L17: 48853.22881 | M17: 50594.10189 | N17: 52494.77146 | O17: 56944.70495 | P17: 59896.43888 | Q17: 66139.91771 | R17: 71865.09345 | S17: 77208.94909 | T17: 83594.12871 | U17: 89537.89611 | V17: 92893.01289 | W17: 96130.75445 | X17: 97659.4493 | Y17: 99936.59467 | Z17: 100622.9566 | AA17: 100538.9161
B19: Potencia instalada Islas Baleares (MW) | C19: 2006 | D19: 2007 | E19: 2008 | F19: 2009 | G19: 2010 | H19: 2011 | I19: 2012 | J19: 2013 | K19: 2014
B20: Carbón | C20: 468.4 | D20: 468.4 | E20: 468.4 | F20: 468.4 | G20: 468.4 | H20: 468.4 | I20: 468.4 | J20: 468.4 | K20: 468.4
B21: Motores diesel | C21: 175.6 | D21: 210.4 | E21: 203.3 | F21: 196.2 | G21: 196.2 | H21: 182 | I21: 182 | J21: 182 | K21: 182
B22: Turbina de gas | C22: 541.9 | D22: 387.9 | E22: 460.8 | F22: 531.8 | G22: 533.4 | H22: 533.4 | I22: 557.4 | J22: 605.4 | K22: 605.4
B23: Fuel + Gas | C23: 717.5 | D23: 598.3 | E23: 664.1 | F23: 728 | G23: 729.6 | H23: 715.4 | I23: 739.4 | J23: 787.4 | K23: 787.4
B24: Ciclo combinado | C24: 418.15 | D24: 643.45 | E24: 643.45 | F24: 793.65 | G24: 857.95 | H24: 857.95 | I24: 857.95 | J24: 857.95 | K24: 857.95
B25: Generación auxiliar | C25: - | D25: - | E25: - | F25: - | G25: - | H25: - | I25: - | J25: - | K25: -
B26: Eólica | C26: 3.6763 | D26: 3.6763 | E26: 3.6763 | F26: 3.6763 | G26: 3.6763 | H26: 3.6763 | I26: 3.6763 | J26: 3.6763 | K26: 3.6763
B27: Solar fotovoltaica | C27: 1.11289 | D27: 1.47669 | E27: 51.53754 | F27: 52.58454 | G27: 59.01353 | H27: 63.13208 | I27: 77.50613 | J27: 77.67493 | K27: 77.73383
B28: Térmica renovable/Otras renovables | C28: - | D28: - | E28: - | F28: - | G28: - | H28: - | I28: 2.13 | J28: 2.13 | K28: 2.13
B29: Térmica no renovable/Cogeneración y resto/Cogeneración | C29: 38.31 | D29: 39.168 | E29: 38.188 | F29: 40.402 | G29: 81.171 | H29: 82.171 | I29: 85.625 | J29: 85.625 | K29: 85.625
B30: Residuos no renovables | C30: - | D30: - | E30: - | F30: - | G30: - | H30: - | I30: - | J30: - | K30: -
B31: Residuos renovables | C31: - | D31: - | E31: - | F31: - | G31: - | H31: - | I31: - | J31: - | K31: -
B32: Total | C32: 1647.14919 | D32: 1754.47099 | E32: 1869.35184 | F32: 2086.71284 | G32: 2199.81083 | H32: 2190.72938 | I32: 2234.68743 | J32: 2282.85623 | K32: 2282.91513
B34: Potencia instalada Islas Canarias (MW) | C34: 2006 | D34: 2007 | E34: 2008 | F34: 2009 | G34: 2010 | H34: 2011 | I34: 2012 | J34: 2013 | K34: 2014
B35: Hidráulica | C35: 0.8 | D35: 0.8 | E35: 0.8 | F35: 0.8 | G35: 0.8 | H35: 0.8 | I35: 0.8 | J35: 0.8 | K35: 0.8
B36: Motores diesel | C36: 476.73 | D36: 476.73 | E36: 476.73 | F36: 476.73 | G36: 476.73 | H36: 476.73 | I36: 476.73 | J36: 496.2 | K36: 495.92
B37: Turbina de gas | C37: 520.17 | D37: 520.17 | E37: 520.17 | F37: 520.17 | G37: 520.17 | H37: 557.16 | I37: 557.16 | J37: 557.16 | K37: 557.16
B38: Turbina de vapor | C38: 659.78 | D38: 659.78 | E38: 659.78 | F38: 659.78 | G38: 659.78 | H38: 659.78 | I38: 659.78 | J38: 482.64 | K38: 482.64
B39: Fuel + Gas | C39: 1656.68 | D39: 1656.68 | E39: 1656.68 | F39: 1656.68 | G39: 1656.68 | H39: 1693.67 | I39: 1693.67 | J39: 1536 | K39: 1535.72
B40: Ciclo combinado | C40: 635.2 | D40: 635.2 | E40: 635.2 | F40: 640.2 | G40: 870.6 | H40: 864.2 | I40: 864.2 | J40: 864.2 | K40: 864.2
B41: Generación auxiliar | C41: 41.27 | D41: 41.35 | E41: 16.18 | F41: 16.1 | G41: - | H41: - | I41: - | J41: - | K41: -
B42: Hidroéolica | C42: - | D42: - | E42: - | F42: - | G42: - | H42: - | I42: - | J42: - | K42: 11.39
B43: Resto hidráulica | C43: 0.463 | D43: 0.463 | E43: 0.463 | F43: 0.463 | G43: 0.463 | H43: 0.463 | I43: 0.463 | J43: 0.463 | K43: 0.463
B44: Eólica | C44: 126.645 | D44: 134.955 | E44: 136.985 | F44: 142.585 | G44: 142.585 | H44: 145.135 | I44: 145.475 | J44: 152.59 | K44: 152.59
B45: Solar fotovoltaica | C45: 5.40378 | D45: 22.22271 | E45: 93.75416 | F45: 95.70661 | G45: 125.09781 | H45: 138.04026 | I45: 161.15558 | J45: 164.19108 | K45: 165.24328
B46: Térmica renovable/Otras renovables | C46: 38.2 | D46: 40.296 | E46: 41.568 | F46: 41.568 | G46: 41.568 | H46: 3.368 | I46: 3.368 | J46: 3.368 | K46: 3.368
B47: Térmica no renovable/Cogeneración y resto/Cogeneración | C47: 33.268 | D47: 33.268 | E47: 33.268 | F47: 33.268 | G47: 33.268 | H47: 33.268 | I47: 33.268 | J47: 33.268 | K47: 33.268
B48: Total | C48: 2537.92978 | D48: 2565.23471 | E48: 2614.89816 | F48: 2627.37061 | G48: 2871.06181 | H48: 2878.94426 | I48: 2902.39958 | J48: 2754.88008 | K48: 2767.04228
B50: Potencia instalada Ceuta (MW) | C50: 2006 | D50: 2007 | E50: 2008 | F50: 2009 | G50: 2010 | H50: 2011 | I50: 2012 | J50: 2013 | K50: 2014
B51: Motores diesel | C51: 53.3 | D51: 64.48 | E51: 65.72 | F51: 65.72 | G51: 77.52 | H51: 77.52 | I51: 77.52 | J51: 77.52 | K51: 77.52
B52: Turbina de gas | C52: - | D52: - | E52: - | F52: - | G52: 13.3 | H52: 13.3 | I52: 13.3 | J52: 13.3 | K52: 13.3
B53: Fuel + Gas | C53: 53.3 | D53: 64.48 | E53: 65.72 | F53: 65.72 | G53: 90.82 | H53: 90.82 | I53: 90.82 | J53: 90.82 | K53: 90.82
B54: Total | C54: 53.3 | D54: 64.48 | E54: 65.72 | F54: 65.72 | G54: 90.82 | H54: 90.82 | I54: 90.82 | J54: 90.82 | K54: 90.82
B56: Potencia instalada Melilla (MW) | C56: 2006 | D56: 2007 | E56: 2008 | F56: 2009 | G56: 2010 | H56: 2011 | I56: 2012 | J56: 2013 | K56: 2014
B57: Motores diesel | C57: 49.81 | D57: 64.51 | E57: 64.64 | F57: 64.64 | G57: 64.64 | H57: 64.64 | I57: 64.64 | J57: 64.64 | K57: 64.64
B58: Turbina de gas | C58: 11.5 | D58: 11.5 | E58: 11.5 | F58: 11.5 | G58: 11.5 | H58: 11.5 | I58: 11.5 | J58: 11.5 | K58: 11.5
B59: Fuel + Gas | C59: 61.31 | D59: 76.01 | E59: 76.14 | F59: 76.14 | G59: 76.14 | H59: 76.14 | I59: 76.14 | J59: 76.14 | K59: 76.14
B60: Solar fotovoltaica | C60: 0.0075 | D60: 0.0084 | E60: 0.0579 | F60: 0.0579 | G60: 0.0579 | H60: 0.0579 | I60: 0.0579 | J60: 0.0579 | K60: 0.0579
B61: Térmica no renovable/Cogeneración y resto/Cogeneración | C61: 0 | D61: 2.168 | E61: 2.168 | F61: 2.168 | G61: 2.168 | H61: 2.168 | I61: 2.168 | J61: 2.168 | K61: 2.168
B62: Residuos no renovables | C62: - | D62: - | E62: - | F62: - | G62: - | H62: - | I62: - | J62: - | K62: -
B63: Residuos renovables | C63: - | D63: - | E63: - | F63: - | G63: - | H63: - | I63: - | J63: - | K63: -
B64: Total | C64: 61.3175 | D64: 78.1864 | E64: 78.3659 | F64: 78.3659 | G64: 78.3659 | H64: 78.3659 | I64: 78.3659 | J64: 78.3659 | K64: 78.3659
B66: Potencia instalada nacional (MW) | C66: 2006 | D66: 2007 | E66: 2008 | F66: 2009 | G66: 2010 | H66: 2011 | I66: 2012 | J66: 2013 | K66: 2014
B67: Hidráulica convencional y mixta | C67: 14567.21 | D67: 14580.21 | E67: 14636.31 | F67: 14636.31 | G67: 14656.11 | H67: 14668.01 | I67: 14887.45 | J67: 14890.49 | K67: 14896.72
B68: Bombeo puro | C68: 2450.94 | D68: 2450.94 | E68: 2450.94 | F68: 2450.94 | G68: 2450.94 | H68: 2450.94 | I68: 2450.94 | J68: 2450.94 | K68: 2450.94
B69: Nuclear | C69: 7455.58 | D69: 7455.58 | E69: 7455.58 | F69: 7455.58 | G69: 7515.37 | H69: 7572.58 | I69: 7572.58 | J69: 7572.58 | K69: 7572.58
B70: Carbón | C70: 11392.7 | D70: 11326.05 | E70: 11324.8 | F70: 11324.8 | G70: 11342.35 | H70: 11571.79 | I70: 11063.87 | J70: 11078.77 | K70: 10936.42
B71: Fuel + Gas | C71: 8899.98 | D71: 6958.81 | E71: 6658.81 | F71: 5368.71 | G71: 4698.03 | H71: 3382.55 | I71: 3105.55 | J71: 2995.88 | K71: 2995.6
B72: Ciclo combinado | C72: 16358.27 | D72: 21950.86 | E72: 22652.77 | F72: 24183.96 | G72: 26572.93 | H72: 26633.88 | I72: 26669.86 | J72: 26669.86 | K72: 26669.86
B73: Hidroeólica | C73: - | D73: - | E73: - | F73: - | G73: - | H73: - | I73: - | J73: - | K73: 11.39
B74: Resto hidráulica | C74: 1796.82805 | D74: 1870.07365 | E74: 1977.73865 | F74: 2020.76965 | G74: 2031.42198 | H74: 2036.88378 | I74: 2040.39178 | J74: 2095.38478 | K74: 2095.38478
B75: Eólica | C75: 11416.031 | D75: 13664.421 | E75: 16133.488 | F75: 18860.703 | G75: 19707.31475 | H75: 21166.89875 | I75: 22757.85335 | J75: 23009.24035 | K75: 23027.71085
B76: Solar fotovoltaica | C76: 125.37531 | D76: 617.97915 | E76: 3350.54935 | F76: 3391.55668 | G76: 3829.38315 | H76: 4233.2897 | I76: 4532.31084 | J76: 4638.42408 | K76: 4645.69962
B77: Solar térmica | C77: 11.02 | D77: 11.02 | E77: 60.92 | F77: 232.22 | G77: 531.92 | H77: 998.52 | I77: 1949.92 | J77: 2299.4275 | K77: 2299.4275
B78: Térmica renovable/Otras renovables | C78: 592.6285 | D78: 612.96491 | E78: 654.06291 | F78: 781.67291 | G78: 820.35191 | H78: 886.28791 | I78: 973.93041 | J78: 949.94041 | K78: 987.46341
B79: Térmica no renovable/Cogeneración y resto/Cogeneración | C79: 6442.0827 | D79: 6557.5921 | E79: 6810.2631 | F79: 7043.96 | G79: 7214.6912 | H79: 7296.6787 | I79: 7238.2112 | J79: 7178.9417 | K79: 7168.8632
B80: Residuos no renovables | C80: - | D80: - | E80: - | F80: - | G80: - | H80: - | I80: - | J80: - | K80: -
B81: Residuos renovables | C81: - | D81: - | E81: - | F81: - | G81: - | H81: - | I81: - | J81: - | K81: -
B82: Total | C82: 81508.64556 | D82: 88056.50081 | E82: 94166.23201 | F82: 97751.18224 | G82: 101370.813 | H82: 102898.3088 | I82: 105242.8676 | J82: 105829.8788 | K82: 105758.0594

Sheet Año (hidden)
E1: 1 | F1: 1 | G1: 1
B2: 1990-1999 | C2: 2006-2014 | E2: Nacional
B3: 2000-2009 | E3: Peninsular
B4: 2010-2014 | E4: Canarias
E5: Baleares
E6: Ceuta
E7: Melilla
